Cogmind - Beta 13 @@@ ROGUE MODE // 2024.04.19 @ 01:39:28 Player: Aleks Result: Destroyed by G-73 Enforcer with Phase Gun Performance ------------- Evolutions (8) 4000 Regions Visited (25) 5000 Robots Destroyed (155) 775 Value Destroyed (5553) 5553 Prototype IDs (91) 1820 Alien Tech Used (2) 400 Bonus (8086) 8086 TOTAL SCORE: 25634 Bonus ------- High Alert Combat Kills 252 Follower Combat Kills 371 Met Imprinter 300 Met Zhirov 300 Met Warlord at Base 500 MAIN.C Attacked Warlord 500 Warlord Defense Kills 1392 Hacked Protovariant 500 Met Warlord at Research 2000 Acquired SGEMP 2000 Friendly Fire -29 Cogmind --------- Core Integrity 0/1450 Matter 190/300 Energy 99/100 System Corruption 0% Temperature Cool (9) Movement Core (50) Location -2/Research Parts ------- > --- POWER (2) -------- (None) > --- PROPULSION (8) --- (None) > --- UTILITY (11) ----- Experimental Signal Interpreter Improved Hacking Suite Improved System Guard > --- WEAPON (2) ------- (None) > --- INVENTORY (5) ---- Micro Antimatter Reactor Guided Micro-nuke Launcher SGEMP Prototype Peak State ------------ > --- POWER ------------ Quantum Reactor Light Quantum Reactor > --- PROPULSION ------- Biometal Leg Centrium Leg Centrium Leg Centrium Leg Improved Diametric Drive Impulse Thruster Array Improved Q-thruster > --- UTILITY ---------- Large Storage Unit Long-range Sensor Array Experimental Signal Interpreter Experimental Target Analyzer Experimental Armor Integrity Analyzer Advanced Cloaking Device Advanced Powered Armor Hacking Suite Improved Hacking Suite Improved System Guard Improved System Guard > --- WEAPON ----------- Hypervelocity Mass Driver Gravity Flail > --- INVENTORY -------- Compact Particle Reactor Quantum Reactor Light Quantum Reactor Experimental Cooling System Experimental Actuator Array Enhanced Nova Cannon Hypervelocity Railgun Guided Micro-nuke Launcher SGEMP Prototype [Rating: 187] Favorites ----------- Power Micro Fission Core Engine Cooled Ion Engine Power Core Micro Fission Core Reactor Micro Antimatter Reactor Propulsion Impulse Thruster Array Treads Light Treads Leg Centrium Leg Wheel Compact Wheel Hover Unit Cooled Gravmag System Flight Unit Impulse Thruster Array Utility Improved Hacking Suite Device Long-range Sensor Array Storage Large Storage Unit Processor Advanced Signal Interpreter Hackware Improved Hacking Suite Protection Improved Light Armor Plating Weapon Power Sword Energy Cannon Advanced Plasma Cannon Ballistic Gun Assault Rifle Ballistic Cannon Light Cannon Launcher Rocket Launcher Special Weapon Advanced Remote Datajack Impact Weapon Gravity Flail Slashing Weapon Power Sword Build | -11 -10 -9 -9 -8 -7 -6 -6 -6 -6 -5 -5 -5 -5 -5 -5 -5 -4 -4 -4 -4 -4 -3 -3 -3 -2 ------- Run | Yrd Mat Mat Min Mat Fac Fac Low Low Zio Pro Fac Was Fac Upp Upp Zhi Pro Fac Upp Upp War Pro Res Tes Res Slots Evolved 16 | . . 2 . 2 2 2 . . . . 2 . . . . . . 2 . . . . 2 . 2 Power 1 | . . . . . . . . . . . . . . . . . . 1 . . . . . . . Propulsion 6 | . . 1 . 1 1 . . . . . . . . . . . . 1 . . . . 1 . 1 Utility 9 | . . 1 . 1 1 2 . . . . 2 . . . . . . . . . . . 1 . 1 Weapon . | . . . . . . . . . . . . . . . . . . . . . . . . . . Parts Attached 316 | 6 5 13 2 13 15 27 4 5 5 7 38 5 33 . 1 8 . 44 . 1 15 1 21 15 32 Power 40 | 1 1 1 . 3 2 1 . . 1 . 3 . 2 . . 1 . 8 . . 4 . 6 1 5 Engine 6 | 1 1 1 . 1 . . . . . . . . . . . . . 1 . . 1 . . . . Core 17 | . . . . 2 2 1 . . 1 . 3 . 2 . . 1 . 3 . . 1 . 1 . . Reactor 17 | . . . . . . . . . . . . . . . . . . 4 . . 2 . 5 1 5 Propulsion 62 | 2 2 2 1 3 7 3 2 2 2 . 8 . 3 . . 2 . 6 . . 2 . 2 5 8 Treads 6 | . 2 1 . 3 . . . . . . . . . . . . . . . . . . . . . Leg 4 | . . . . . . . . . . . . . . . . . . . . . . . . . 4 Wheel 2 | 2 . . . . . . . . . . . . . . . . . . . . . . . . . Hover 1 | . . . . . . . . . . . . . . . . 1 . . . . . . . . . Flight 49 | . . 1 1 . 7 3 2 2 2 . 8 . 3 . . 1 . 6 . . 2 . 2 5 4 Utility 111 | 1 1 5 1 2 2 9 . 3 . 5 17 . 14 . 1 5 . 16 . . 6 . 8 8 7 Device 58 | . 1 1 1 . 1 2 . 3 . 4 7 . 8 . . 2 . 9 . . 5 . 4 7 3 Storage 8 | 1 . . . 1 1 . . . . . 2 . . . . 1 . 1 . . . . 1 . . Processor 8 | . . . . 1 . 1 . . . . 1 . . . . . . 1 . . 1 . . 1 2 Hackware 16 | . . 1 . . . 5 . . . 1 2 . 2 . 1 1 . 1 . . . . 1 . 1 Protection 21 | . . 3 . . . 1 . . . . 5 . 4 . . 1 . 4 . . . . 2 . 1 Artifact . | . . . . . . . . . . . . . . . . . . . . . . . . . . Weapon 103 | 2 1 5 . 5 4 14 2 . 2 2 10 5 14 . . . . 14 . 1 3 1 5 1 12 Energy Gun . | . . . . . . . . . . . . . . . . . . . . . . . . . . Energy Cannon 22 | . . . . . . 8 . . . . 1 . 5 . . . . 5 . . . . 1 . 2 Ballistic Gun 5 | 2 1 . . . . . . . . . . . . . . . . . . . . . . . 2 Ballistic Cannon 15 | . . 2 . 2 . . . . . . 5 2 1 . . . . 1 . . . . 1 . 1 Launcher 14 | . . 3 . 1 . 2 1 . . 1 2 . . . . . . 1 . . 2 . . . 1 Special Weapon 1 | . . . . . . . . . . . . 1 . . . . . . . . . . . . . Impact Weapon 10 | . . . . 2 1 . . . . . . . . . . . . 2 . 1 . . 1 . 3 Slashing Weapon 36 | . . . . . 3 4 1 . 2 1 2 2 8 . . . . 5 . . 1 1 2 1 3 Piercing Weapon . | . . . . . . . . . . . . . . . . . . . . . . . . . . Special Melee Weapon . | . . . . . . . . . . . . . . . . . . . . . . . . . . Unidentified Prototypes 17 | . . . . . 1 . . . . . 2 . . . . 4 . . . . 6 . . 1 3 Parts Lost 63 | . 1 2 . 10 1 8 . 1 . 1 2 . . . . . . 5 . . . . 5 7 20 Power 11 | . 1 . . 2 . 1 . . . . . . . . . . . 1 . . . . 2 1 3 Propulsion 24 | . . . . 5 1 5 . 1 . . 1 . . . . . . 2 . . . . . 3 6 Utility 19 | . . . . . . 1 . . . 1 1 . . . . . . 2 . . . . 3 3 8 Weapon 9 | . . 2 . 3 . 1 . . . . . . . . . . . . . . . . . . 3 Highest Loss Streak 9 | . 1 2 . 3 1 6 . 1 . 1 1 . . . . . . 1 . . . . 2 3 9 To Critical Strikes . | . . . . . . . . . . . . . . . . . . . . . . . . . . Average Slot Usage (%) 85 | . 96 86 93 78 95 88 69 90 96 99 86 87 87 88 88 88 88 75 73 74 82 84 84 80 73 Engine 2 | . 13 11 11 5 . . . . . . . . . . . . . . 5 5 5 . . . . Core 3 | . . . . 1 6 5 6 6 6 6 4 5 5 5 5 5 5 2 . . . . . . . Treads 4 | . 18 22 22 15 . . . . . . . . . . . . . . . . . . . . . Flight 17 | . . . 5 4 36 28 15 30 32 33 20 17 16 17 17 16 17 14 15 15 19 21 23 19 18 Device 10 | . 10 5 10 9 15 11 6 6 6 6 10 17 13 11 11 10 11 9 10 10 7 5 9 12 4 Storage 5 | . 14 11 11 9 7 4 . . . . 3 5 5 5 5 5 5 5 5 5 5 5 4 4 3 Processor 5 | . . . . 8 7 6 6 6 6 6 5 5 5 5 5 5 5 5 5 5 7 10 9 9 18 Hackware 21 | . . 10 11 9 7 22 33 33 33 31 30 23 26 29 29 29 29 25 26 26 26 26 20 17 9 Ballistic Gun 1 | . 28 12 . . . . . . . . . . . . . . . . . . . . . . . Ballistic Cannon 2 | . . 4 22 9 . . . . . . . . . . . . . . . . . . . . . Slashing Weapon 5 | . . . . . 11 5 1 6 9 12 7 8 10 11 11 11 11 5 5 5 4 5 3 3 2 Naked Turns . | . . . . . . . . . . . . . . . . . . . . . . . . . . Heaviest Build 92 | 12 15 24 22 36 23 23 13 14 17 21 37 44 36 34 34 37 37 48 35 38 44 44 58 49 92 Greatest Support 118 | 32 40 40 40 62 27 28 26 28 36 36 39 38 41 38 38 38 38 48 38 38 46 46 52 52 118 Greatest Overweight (x) 8 | . . . . 8 . . . . . . 1 1 1 . . 1 . 1 . . . . 1 1 . Average Overweight (x) . | . . . . . . . . . . . . . . . . . . . . . . . . . . Largest Inventory Capacity 15 | 8 8 8 8 15 15 10 5 5 5 5 15 15 15 15 15 15 15 15 15 15 15 15 15 15 15 Average Capacity 11 | 7 8 8 8 13 10 9 5 5 5 5 11 15 15 15 15 15 15 15 15 15 15 15 15 15 13 Most Carried 15 | 6 8 8 8 13 11 10 5 5 5 5 15 15 15 15 15 15 15 15 15 15 15 15 15 15 15 Average Carried 11 | 3 7 7 7 11 9 8 4 5 4 5 10 14 14 15 15 14 15 14 15 14 14 15 14 14 11 Final Capacity 15 | 8 8 8 8 15 10 5 5 5 5 5 15 15 15 15 15 15 15 15 15 15 15 15 15 15 5 Final Carried 15 | 6 8 8 8 12 10 5 5 4 5 5 15 15 15 15 15 15 15 15 15 15 15 15 15 12 5 Class Distribution -------------------- 28% | Wizard-Mutant 21% | Hacker-Mutant 20% | Mutant 9% | Wizard-Sprinter 9% | Hacker-Sprinter 6% | Hacker-Scout 5% | Scout Dominant Class ---------------- Mutant | -10/Materials Mutant | -9/Materials Mutant | -9/Mines Mutant | -8/Materials Scout | -7/Factory Hacker-Scout | -6/Factory Hacker-Mutant | -6/Lower Caves Hacker-Sprinter | -6/Lower Caves Hacker-Mutant | -6/Zion Hacker-Mutant | -5/Proximity Caves Wizard-Mutant | -5/Factory Hacker-Mutant | -5/Waste Wizard-Mutant | -5/Factory Wizard-Mutant | -5/Upper Caves Wizard-Mutant | -5/Upper Caves Wizard-Mutant | -5/Zhirov Wizard-Mutant | -4/Proximity Caves Wizard-Mutant | -4/Factory Wizard-Mutant | -4/Upper Caves Wizard-Mutant | -4/Upper Caves Wizard-Sprinter | -4/Warlord Wizard-Sprinter | -3/Proximity Caves Hacker-Sprinter | -3/Research Hacker-Sprinter | -3/Testing Hacker-Sprinter | -2/Research Resources | -11 -10 -9 -9 -8 -7 -6 -6 -6 -6 -5 -5 -5 -5 -5 -5 -5 -4 -4 -4 -4 -4 -3 -3 -3 -2 ----------- Run | Yrd Mat Mat Min Mat Fac Fac Low Low Zio Pro Fac Was Fac Upp Upp Zhi Pro Fac Upp Upp War Pro Res Tes Res Matter Collected 4722 | 229 136 201 283 307 145 193 198 69 22 77 623 190 394 . . 36 64 505 61 62 345 10 292 43 237 Remotely . | . . . . . . . . . . . . . . . . . . . . . . . . . . Salvage Created 5818 | . 227 370 34 945 169 363 41 26 . 43 881 . 545 . . 36 141 756 . . 209 . 409 193 430 Parts 267 | . 12 27 1 40 7 21 5 2 . 8 48 . 34 . . . 1 33 . . 1 . 8 6 13 Haulers Intercepted 18 | . 1 . . 1 1 2 . . . . 3 . 2 . . . . 3 . . . . 3 . 2 Recyclers Shooed 1 | . . . . . . . . . . . . . . . . . . 1 . . . . . . . Parts Field Recycled . | . . . . . . . . . . . . . . . . . . . . . . . . . . Retrieved Matter . | . . . . . . . . . . . . . . . . . . . . . . . . . . Parts Self-Destructed 21 | . . . . . . . 3 13 . 5 . . . . . . . . . . . . . . . Prevented . | . . . . . . . . . . . . . . . . . . . . . . . . . . Kills | -11 -10 -9 -9 -8 -7 -6 -6 -6 -6 -5 -5 -5 -5 -5 -5 -5 -4 -4 -4 -4 -4 -3 -3 -3 -2 ------- Run | Yrd Mat Mat Min Mat Fac Fac Low Low Zio Pro Fac Was Fac Upp Upp Zhi Pro Fac Upp Upp War Pro Res Tes Res Combat Hostiles Destroyed 107 | . 6 11 1 25 1 8 3 1 . 4 12 . 5 . . . . 11 . . 11 . 2 3 3 Melee 11 | . . 1 . 3 1 1 . 1 . . . . 2 . . . . . . . . . . . 2 Guns 10 | . 6 3 . . . . . . . . . . . . . . . . . . . . . . 1 Cannons 21 | . . 2 1 8 . . . . . . 3 . 3 . . . . 3 . . . . 1 . . AOE 52 | . . 5 . 5 . 7 3 . . 4 9 . . . . . . 7 . . 11 . . 1 . Classes Destroyed 15 | . 3 4 . 2 1 . . . . . 1 . 1 . . . . . . . 2 . . . 1 Worker 4 | . . . . 1 . 1 . . . . . . . . . . . 1 . . . . . 1 . Builder 2 | . . . . 1 . . . . . . 1 . . . . . . . . . . . . . . Hauler 18 | . 1 . . 1 1 2 . . . . 3 . 2 . . . . 3 . . . . 3 . 2 Recycler 2 | . . . . . . . . . . . 1 . . . . . . 1 . . . . . . . Operator 3 | . . 1 . . . . . . . . 1 . 1 . . . . . . . . . . . . Watcher 19 | . . 2 . . 2 . . . . . 6 . 7 . . . . 1 . . . . 1 . . Swarmer 44 | . 3 . . 5 . 7 3 1 . 4 9 . 4 . . . . 8 . . . . . . . Grunt 34 | . 3 8 1 14 . 1 . . . . 1 . . . . . . 2 . . 2 . 1 . 1 Brawler 5 | . . . . . . . . . . . . . . . . . . . . . 5 . . . . Duelist 5 | . . 1 . 2 . . . . . . . . . . . . . . . . 2 . . . . Protector 2 | . . . . . . . . . . . . . . . . . . . . . 2 . . . . Sentry 8 | . . 2 . 4 . . . . . . 2 . . . . . . . . . . . . . . Hunter 4 | . . . . . . . . . . . . . 1 . . . . . . . . . . 2 1 Programmer 4 | . . . . . 1 . . . . . . . . . . . . 1 . . . . 1 1 . Striker 1 | . . . . . . . . . . . . . . . . . . . . . . . . . 1 Best Kill Streak 11 | . 4 4 1 10 2 5 3 1 . 4 7 . 4 . . . . 6 . . 11 . 1 3 2 Combat Bots Only 11 | . 4 3 1 8 1 4 3 1 . 4 5 . 4 . . . . 5 . . 11 . 1 2 1 Max Kills in Single Turn 5 | . 1 2 1 3 1 3 3 1 . 3 4 . 1 . . . . 5 . . 3 . 1 1 1 Gunslinging . | . . . . . . . . . . . . . . . . . . . . . . . . . . Exploded 4 | . . 2 . 3 . 3 3 . . 3 4 . . . . . . 4 . . 3 . . 1 . Melee 1 | . . 1 . 1 1 1 . 1 . . . . 1 . . . . . . . . . . . 1 Uniques/NPCs Destroyed . | . . . . . . . . . . . . . . . . . . . . . . . . . . Combat | -11 -10 -9 -9 -8 -7 -6 -6 -6 -6 -5 -5 -5 -5 -5 -5 -5 -4 -4 -4 -4 -4 -3 -3 -3 -2 -------- Run | Yrd Mat Mat Min Mat Fac Fac Low Low Zio Pro Fac Was Fac Upp Upp Zhi Pro Fac Upp Upp War Pro Res Tes Res Hostile Shots Fired 933 | . 31 69 2 100 46 56 5 11 . 5 52 1 64 . 6 . . 90 . . 6 . 57 50 282 Missed 414 | . 12 14 1 28 33 30 1 7 . 2 24 1 29 . 5 . . 35 . . 6 . 32 23 131 Damage Taken 12008 | . 186 825 29 1284 113 696 31 67 . 40 797 18 663 . 23 . . 1165 . . 40 . 735 727 4569 Core 2971 | . 39 215 29 237 46 156 . . . 15 187 . 89 . 23 . . 193 . . 20 . 135 137 1450 Absorbed by Shields . | . . . . . . . . . . . . . . . . . . . . . . . . . . Regen/Repaired (Parts) 684 | . . . . . . . . . . . 282 2 259 . . . . 94 . . 47 . . . . Core Remaining (%) 74 | 100 84 . 39 56 93 . . . . 79 . . . . . . 70 . . . . 81 . 70 . Volleys Fired 289 | . 20 33 6 29 . 22 1 . . 2 30 10 22 . . . . 87 . . 7 . 17 . 3 Largest 2 | . 2 2 2 2 . 1 1 . . 1 1 1 1 . . . . 1 . . 1 . 1 . 2 Hottest 120 | . 40 70 70 70 . 85 39 . . 39 98 66 98 . . . . 98 . . 45 . 113 . 120 Shots Fired 358 | . 40 60 12 45 . 22 1 . . 2 30 10 22 . . . . 86 . . 7 . 17 . 4 Gun 83 | . 40 42 . . . . . . . . . . . . . . . . . . . . . . 1 Cannon 238 | . . 8 12 39 . 18 . . . . 26 9 22 . . . . 84 . . . . 17 . 3 Launcher 36 | . . 10 . 6 . 4 1 . . 2 4 . . . . . . 2 . . 7 . . . . Special 1 | . . . . . . . . . . . . 1 . . . . . . . . . . . . . Kinetic 215 | . 40 50 12 39 . . . . . . 24 9 7 . . . . 18 . . . . 14 . 2 Thermal 106 | . . . . . . 18 . . . . 2 . 15 . . . . 66 . . . . 3 . 2 Explosive 36 | . . 10 . 6 . 4 1 . . 2 4 . . . . . . 2 . . 7 . . . . Electromagnetic . | . . . . . . . . . . . . . . . . . . . . . . . . . . Robot Hit Streak 11 | . 11 9 4 7 . 2 . . . . 5 6 6 . . . . 7 . . 4 . 4 . 2 Robot Miss Streak 10 | . 2 4 3 3 . 1 . . . . 3 1 1 . . . . 10 . . 1 . 2 . . Penetration Max 1 | . . . . . . . . . . . 1 . 1 . . . . . . . . . . . 1 Secondary Targets 1 | . 1 . . . . . . . . . . . . . . . . . . . . . . . . Max Gunslinging Chain 1 | . 1 . . . . . . . . . . . . . . . . . . . . . . . . Shots Hit Robots 325 | . 22 38 6 55 15 10 . 1 . . 39 8 41 . . 1 3 34 . . 3 . 25 2 22 Core Hits 268 | . 11 24 2 29 4 12 3 1 . 5 30 . 14 . . . . 27 . . 85 . 7 6 8 Critical Kills 11 | . . . . 1 . . . . . . 5 . 1 . . . . 2 . . . . . . 2 Critical Parts Destroyed 23 | . . . . 3 . . . . . . 5 . 4 . . . . 5 . . . . 5 . 1 Critical Strikes 53 | . . . 1 6 1 2 . . . . 12 5 6 . . . . 8 . . . . 8 . 4 Meltdown 1 | . . . . . . . . . . . . . . . . . . 1 . . . . . . . Destroy 32 | . . . . . . . . . . . 11 5 5 . . . . 6 . . . . 4 . 1 Blast 3 | . . . 1 2 . . . . . . . . . . . . . . . . . . . . . Smash 8 | . . . . 4 . . . . . . . . . . . . . . . . . . 1 . 3 Sever 9 | . . . . . 1 2 . . . . 1 . 1 . . . . 1 . . . . 3 . . Melee Attacks 666 | . . . . 37 67 74 . 2 1 . 122 . 149 . . 1 9 54 4 6 15 . 66 24 35 Impact 85 | . . . . 37 2 . . . . . . . . . . . . 3 . . 7 . 18 5 13 Slashing 581 | . . . . . 65 74 . 2 1 . 122 . 149 . . 1 9 51 4 6 8 . 48 19 22 Piercing . | . . . . . . . . . . . . . . . . . . . . . . . . . . Sneak Attacks 24 | . . . . 2 1 3 . . . . 3 . 3 . . . . 4 . . . . 5 1 2 Combat Hostiles . | . . . . . . . . . . . . . . . . . . . . . . . . . . Follow-up Attacks 15 | . . . . . 4 . . . . . 2 . 2 . . . . 2 . . . . 4 . 1 Damage Inflicted 18870 | . 298 1116 104 2467 653 1358 198 57 . 279 1932 155 1833 . . 98 183 2044 . . 2906 . 1366 459 1364 Guns 709 | . 298 399 . . . . . . . . . . . . . . . . . . . . . . 12 Cannons 2236 | . . 108 104 425 . . . . . . 288 155 260 . . . . 723 . . . . 173 . . Explosions 7087 | . . 592 . 745 . 764 198 . . 279 539 . . . . . . 711 . . 2906 . . 353 . Melee 8821 | . . . . 1297 653 594 . 57 . . 1105 . 1573 . . 98 183 610 . . . . 1193 106 1352 Ramming 17 | . . 17 . . . . . . . . . . . . . . . . . . . . . . . Kinetic 2186 | . 298 507 104 425 . . . . . . 288 155 111 . . . . 113 . . . . 173 . 12 Thermal 1062 | . . . . . . . . . . . . . 149 . . . . 913 . . . . . . . Explosive 6636 | . . 560 . 745 . 764 198 . . 279 539 . . . . . . 408 . . 2906 . . 237 . Electromagnetic 148 | . . 32 . . . . . . . . . . . . . . . . . . . . . 116 . Impact 2557 | . . . . 1297 33 . . . . . . . . . . . . . . . . . 534 . 693 Slashing 6264 | . . . . . 620 594 . 57 . . 1105 . 1573 . . 98 183 610 . . . . 659 106 659 Piercing . | . . . . . . . . . . . . . . . . . . . . . . . . . . Highest Corruption 18 | . 4 . . . . 18 18 18 14 . 1 1 1 . . . . 5 5 5 5 . 6 11 . Average Corruption 5 | . 3 . . . . 6 18 17 14 . 1 1 1 . . . . 4 5 5 5 . 4 6 . Corruption Purged 5 | . . . . . . . . 4 . . . . 1 . . . . . . . . . . . . Corruption Blocked 7 | . . . . . . . . . . . 7 . . . . . . . . . . . . . . Effects 110 | . 3 . . . . 16 8 14 1 . 4 2 2 . . . . 26 6 6 1 . 9 12 . Message Errors 35 | . . . . . . 4 1 2 . . 2 . . . . . . 9 3 2 . . 6 6 . Matter Fused 27 | . 1 . . . . 4 3 4 . . 1 . 1 . . . . 5 3 2 . . . 3 . Heat Flow Errors 10 | . 1 . . . . 3 . 1 . . 1 . . . . . . 2 . . . . . 2 . Energy Discharges 17 | . 1 . . . . 2 2 3 . . . 1 1 . . . . 4 . 1 . . 1 1 . Parts Rejected 1 | . . . . . . . . . . . . . . . . . . . . . . . 1 . . Parts Fused 2 | . . . . . . . . 1 . . . . . . . . . . . . 1 . . . . Data Loss (minor) 9 | . . . . . . 2 . 2 1 . . 1 . . . . . 2 . . . . 1 . . Data Loss (major) 3 | . . . . . . . 2 . . . . . . . . . . 1 . . . . . . . Alerts 5 | . . . . . . 1 . 1 . . . . . . . . . 2 . 1 . . . . . Weapon Failures 1 | . . . . . . . . . . . . . . . . . . 1 . . . . . . . Overload Shots . | . . . . . . . . . . . . . . . . . . . . . . . . . . Overflow Damage 1691 | . . . . 388 46 89 . . . . 148 . 141 . . 83 109 148 . . . . 341 39 159 Projectiles 54 | . . . . . . . . . . . . . . . . . . 53 . . . . 1 . . Explosions 121 | . . . . . . 69 . . . . . . . . . . . 44 . . . . . 8 . Melee 1516 | . . . . 388 46 20 . . . . 148 . 141 . . 83 109 51 . . . . 340 31 159 Knockbacks 23 | . . 1 . 11 . . . . . . 2 . . . . . . 2 . . . . 4 . 3 Impact 8 | . . . . 4 . . . . . . . . . . . . . . . . . . 1 . 3 Kinetic 14 | . . 1 . 6 . . . . . . 2 . . . . . . 2 . . . . 3 . . Secondary 1 | . . . . 1 . . . . . . . . . . . . . . . . . . . . . Self-Inflicted Damage 207 | . . 42 . . . 63 . . . . 40 . . . . . . 20 . . 42 . . . . Shots 7 | . . 1 . . . 1 . . . . 1 . . . . . . 1 . . 3 . . . . Rammed 11 | . . 10 . . . . . . . . . . . . . . . . . . . . . . 1 Targets Rammed 12 | . . 11 . . . . . . . . . . . . . . . . . . . . . . 1 Kicked . | . . . . . . . . . . . . . . . . . . . . . . . . . . Crushed 1 | . . 1 . . . . . . . . . . . . . . . . . . . . . . . Highest Temperature 379 | . 137 10 . 54 32 274 . 178 . . 307 84 322 . . . . 121 . . . . 66 229 379 Average Temperature 47 | . 90 7 . 21 10 53 . 78 . . 97 43 125 . . . . 28 . . . . 36 121 94 Received Heat Transfer 1911 | . 54 267 . 495 18 39 . 9 . . 153 . 27 . 9 . . 84 . . . . 48 54 654 Siege Activations . | . . . . . . . . . . . . . . . . . . . . . . . . . . Robots Corrupted 2 | . . . . . . . . . . . . . . . . . . . . . . . . 2 . Combat Hostiles 2 | . . . . . . . . . . . . . . . . . . . . . . . . 2 . Parts Fried 22 | . . . . 12 . . . . . . . . . . . . . . . . . . 4 5 1 Impact Corruptions 24 | . . . . 17 . . . . . . . . . . . . . . . . . . 4 . 3 Robots Melted 2 | . . . . . . . . . . . . . . . . . . 2 . . . . . . . Combat Hostiles 1 | . . . . . . . . . . . . . . . . . . 1 . . . . . . . Parts Melted 2 | . . . . . . . . . . . . . . . . . . 1 . . . . 1 . . Heat Transferred 1300 | . . . . . . . . . . . . . 200 . . . . 1100 . . . . . . . Parts Sabotaged . | . . . . . . . . . . . . . . . . . . . . . . . . . . Parts Stolen . | . . . . . . . . . . . . . . . . . . . . . . . . . . Parts Stripped . | . . . . . . . . . . . . . . . . . . . . . . . . . . Power Chain Reactions 1 | . . . . . . . . . . . . . . . . . . . . . . . . 1 . Alert | -11 -10 -9 -9 -8 -7 -6 -6 -6 -6 -5 -5 -5 -5 -5 -5 -5 -4 -4 -4 -4 -4 -3 -3 -3 -2 ------- Run | Yrd Mat Mat Min Mat Fac Fac Low Low Zio Pro Fac Was Fac Upp Upp Zhi Pro Fac Upp Upp War Pro Res Tes Res Peak Influence 819 | . 179 248 196 496 476 661 . . . . 512 130 446 . . . . 400 . . . . 405 613 819 Initial 342 | . . 17 96 . 225 233 . . . . 56 71 91 . . . . 2 . . . . . 197 342 Average 226 | . 83 111 58 226 343 284 . . . . 273 97 223 . . . . 152 . . . . 215 289 676 Maximum Alert Level 3 | . . 1 . 2 2 2 . . . . 2 . 2 . . . . 2 . . . . 2 2 3 Low Security (%) 45 | 100 100 86 100 48 . 20 . . . . 17 100 41 . . . . 67 . . . . 44 13 . Level 1 45 | . . 13 . 34 75 69 . . . . 72 . 58 . . . . 31 . . . . 54 73 3 Level 2 7 | . . . . 17 24 9 . . . . 9 . . . . . . . . . . . . 13 46 Level 3 2 | . . . . . . . . . . . . . . . . . . . . . . . . . 49 Level 4 . | . . . . . . . . . . . . . . . . . . . . . . . . . . Level 5 . | . . . . . . . . . . . . . . . . . . . . . . . . . . High Security . | . . . . . . . . . . . . . . . . . . . . . . . . . . Max Security . | . . . . . . . . . . . . . . . . . . . . . . . . . . Squads Dispatched 64 | . 3 2 1 6 2 6 . . . . 17 . 9 . . . . 7 . . . . 3 6 2 Investigation 33 | . 1 1 . 1 1 3 . . . . 11 . 6 . . . . 4 . . . . 1 3 1 Extermination 6 | . . . . . . 1 . . . . 1 . 1 . . . . 2 . . . . . 1 . Reinforcement 20 | . 2 1 . 2 1 2 . . . . 5 . 2 . . . . 1 . . . . 2 1 1 Assault 2 | . . . 1 . . . . . . . . . . . . . . . . . . . . 1 . Garrison 3 | . . . . 3 . . . . . . . . . . . . . . . . . . . . . Intercept . | . . . . . . . . . . . . . . . . . . . . . . . . . . Searches Triggered 3 | . . . . . . 1 . . . . 1 . . . . . . . . . . . . 1 . Construction Impeded 2 | . . . . . . 1 . . . . . . . . . . . . . . . . . 1 . Haulers Reinforced 6 | . . . . . . 1 . . . . 2 . 1 . . . . . . . . . 1 . 1 Active Scanning Responses . | . . . . . . . . . . . . . . . . . . . . . . . . . . Cargo Convoy Interrupts 1 | . . . . . . . . . . . 1 . . . . . . . . . . . . . . Stealth | -11 -10 -9 -9 -8 -7 -6 -6 -6 -6 -5 -5 -5 -5 -5 -5 -5 -4 -4 -4 -4 -4 -3 -3 -3 -2 --------- Run | Yrd Mat Mat Min Mat Fac Fac Low Low Zio Pro Fac Was Fac Upp Upp Zhi Pro Fac Upp Upp War Pro Res Tes Res Distress Signals 29 | . 2 2 . 4 1 2 . . . . 7 . . . . . . 1 . . . . 2 . 8 Communications Jammed 33 | . . . . . . . . . . . 11 . . . . . . 19 . . . . 3 . . Distress Signals 33 | . . . . . . . . . . . 11 . . . . . . 19 . . . . 3 . . Times Spotted 421 | . 13 21 7 34 14 42 2 11 . 1 51 8 36 . 3 . . 35 . . 25 . 27 36 55 Peak Tracking Total 16 | . 4 4 4 11 3 6 3 4 . 4 7 6 6 . 4 . . 8 . . 12 . 12 16 16 Tactical Retreats 91 | . . . . 2 5 16 . 2 . . 14 1 11 . 2 . . 9 . . . . 9 5 15 Traps | -11 -10 -9 -9 -8 -7 -6 -6 -6 -6 -5 -5 -5 -5 -5 -5 -5 -4 -4 -4 -4 -4 -3 -3 -3 -2 ------- Run | Yrd Mat Mat Min Mat Fac Fac Low Low Zio Pro Fac Was Fac Upp Upp Zhi Pro Fac Upp Upp War Pro Res Tes Res Traps Triggered 24 | . 3 . . 1 1 3 . . . . 4 . 2 . . . . 5 . . . . 2 3 . Indirectly . | . . . . . . . . . . . . . . . . . . . . . . . . . . Trap Hack Attempts . | . . . . . . . . . . . . . . . . . . . . . . . . . . Triggered . | . . . . . . . . . . . . . . . . . . . . . . . . . . Disarmed . | . . . . . . . . . . . . . . . . . . . . . . . . . . Reprogrammed . | . . . . . . . . . . . . . . . . . . . . . . . . . . Reused . | . . . . . . . . . . . . . . . . . . . . . . . . . . Traps Extracted . | . . . . . . . . . . . . . . . . . . . . . . . . . . Installed . | . . . . . . . . . . . . . . . . . . . . . . . . . . Triggered 14 | . . . . . . . . . . . 2 . . . . . . . . . 12 . . . . Objects Rigged 5 | . . . . . . . . . . . . . . . . . . 3 . . . . . 2 . Exploded 4 | . . . . . . . . . . . . . . . . . . 2 . . . . . 2 . Machines | -11 -10 -9 -9 -8 -7 -6 -6 -6 -6 -5 -5 -5 -5 -5 -5 -5 -4 -4 -4 -4 -4 -3 -3 -3 -2 ---------- Run | Yrd Mat Mat Min Mat Fac Fac Low Low Zio Pro Fac Was Fac Upp Upp Zhi Pro Fac Upp Upp War Pro Res Tes Res Machines Disabled 29 | . . 2 . 3 2 5 . . . . 2 . 2 . . . . 6 . . 1 . . 6 . Max in Single Turn 3 | . . 1 . 2 1 3 . . . . 2 . 1 . . . . 3 . . 1 . . 2 . Garrison Access 14 | . . . . . 1 3 . . . . 3 . 3 . . . . 2 . . . . . 1 1 Machines Repaired . | . . . . . . . . . . . . . . . . . . . . . . . . . . Machines Dismantled . | . . . . . . . . . . . . . . . . . . . . . . . . . . Machines Sabotaged . | . . . . . . . . . . . . . . . . . . . . . . . . . . Overloaded Fab Kills 2 | . . . . . . . . . . . . . . . . . . . . . . . . 2 . Hacking | -11 -10 -9 -9 -8 -7 -6 -6 -6 -6 -5 -5 -5 -5 -5 -5 -5 -4 -4 -4 -4 -4 -3 -3 -3 -2 --------- Run | Yrd Mat Mat Min Mat Fac Fac Low Low Zio Pro Fac Was Fac Upp Upp Zhi Pro Fac Upp Upp War Pro Res Tes Res Machines Accessed 174 | . 6 2 . 2 16 24 . . . . 31 . 35 . 1 6 . 21 1 . 5 . 8 13 3 Terminals 95 | . 5 2 . 2 11 16 . . . . 14 . 18 . . . . 13 . . . . 4 8 2 Fabricators 20 | . . . . . 2 4 . . . . 6 . 3 . . . . 2 . . . . 2 1 . Repair Stations 8 | . . . . . . . . . . . 2 . 4 . . . . 1 . . . . . 1 . Recycling Units 13 | . 1 . . . 1 1 . . . . 3 . 4 . . . . 2 . . . . 1 . . Scanalyzers 11 | . . . . . 1 . . . . . 3 . 3 . . . . 1 . . . . 1 2 . Garrison Access 14 | . . . . . 1 3 . . . . 3 . 3 . . . . 2 . . . . . 1 1 Total Hacks 564 | . 13 15 . 6 39 68 . . . . 125 . 102 . 1 19 . 85 1 . 9 . 21 50 10 Successful 412 | . 6 5 . 3 20 45 . . . . 105 . 77 . 1 19 . 64 1 . 9 . 14 38 5 Failed 150 | . 7 10 . 3 19 23 . . . . 19 . 24 . . . . 21 . . . . 7 12 5 Catastrophic 12 | . 1 1 . . 2 2 . . . . 1 . 2 . . . . 1 . . . . 1 . 1 Database Lockouts 2 | . . . . . . . . . . . 1 . 1 . . . . . . . . . . . . Manual 248 | . 7 14 . 3 22 37 . . . . 48 . 45 . . . . 39 . . . . 14 16 3 Terminals 367 | . 12 15 . 6 29 51 . . . . 71 . 63 . . . . 63 . . . . 11 38 8 Fabricators 66 | . . . . . 4 12 . . . . 23 . 10 . . . . 8 . . . . 8 1 . Repair Stations 23 | . . . . . . . . . . . 8 . 11 . . . . 2 . . . . . 2 . Recycling Units 31 | . 1 . . . 2 1 . . . . 11 . 9 . . . . 6 . . . . 1 . . Scanalyzers 27 | . . . . . 3 . . . . . 9 . 3 . . . . 3 . . . . 1 8 . Garrison Access 20 | . . . . . 1 4 . . . . 3 . 6 . . . . 3 . . . . . 1 2 Terminal Hacks 222 | . 4 4 . 2 7 23 . . . . 45 . 38 . 1 19 . 38 1 . 9 . 5 23 3 Record 16 | . . . . . . 1 . . . . 1 . . . . 7 . . . . 7 . . . . Part Schematic 25 | . . . . . 1 4 . . . . 4 . 3 . . 4 . 5 . . . . 1 3 . Robot Analysis 15 | . 1 1 . . . . . . . . 1 . 5 . . 4 . 2 . . . . . 1 . Prototype ID Bank 31 | . 3 1 . 1 2 4 . . . . 5 . 6 . . 4 . 2 . . . . . 2 1 Open Door 6 | . . . . . . . . . . . . . 1 . 1 . . . 1 . 2 . . 1 . Open DSF 1 | . . . . . . 1 . . . . . . . . . . . . . . . . . . . Level Access Points 2 | . . . . . . . . . . . . . . . . . . 1 . . . . . 1 . Branch Access Points 4 | . . . . . . . . . . . 1 . . . . . . 1 . . . . . 1 1 Emergency Access Points 1 | . . . . . . . . . . . 1 . . . . . . . . . . . . . . Terminal Index 9 | . . 1 . . 1 1 . . . . 1 . 1 . . . . 1 . . . . 1 1 1 Fabricator Index 5 | . . . . . . 1 . . . . 1 . 1 . . . . 1 . . . . . 1 . Repair Station Index 3 | . . . . . . . . . . . . . 1 . . . . 1 . . . . . 1 . Scanalyzer Index 2 | . . . . . . . . . . . . . 1 . . . . . . . . . 1 . . Garrison Index 2 | . . . . . . . . . . . 1 . . . . . . . . . . . . 1 . Alert Level 13 | . . 1 . . . 3 . . . . 2 . 4 . . . . 3 . . . . . . . Unreport Threat 11 | . . . . . . 3 . . . . 4 . 1 . . . . 3 . . . . . . . Locate Traps 18 | . . . . . 1 1 . . . . 2 . 5 . . . . 6 . . . . 1 2 . Security Status 1 | . . . . . . . . . . . 1 . . . . . . . . . . . . . . Investigation Status 2 | . . . . . . . . . . . 2 . . . . . . . . . . . . . . Extermination Status 1 | . . . . . . . . . . . 1 . . . . . . . . . . . . . . Reinforcement Status 1 | . . . . . . . . . . . 1 . . . . . . . . . . . . . . Recall Investigation 17 | . . . . . 1 1 . . . . 5 . 5 . . . . 4 . . . . 1 . . Recall Extermination 5 | . . . . . . 1 . . . . 1 . 1 . . . . 2 . . . . . . . Recall Reinforcements 4 | . . . . . . . . . . . 3 . . . . . . 1 . . . . . . . Hauler Manifests 5 | . . . . . 1 . . . . . 2 . 1 . . . . 1 . . . . . . . Registered Components 6 | . . . . 1 . 1 . . . . 1 . 1 . . . . 1 . . . . . 1 . Registered Prototypes 3 | . . . . . . 1 . . . . 1 . 1 . . . . . . . . . . . . Zone Layout 10 | . . . . . . . . . . . 3 . . . . . . 3 . . . . . 4 . Protovariant Controls 3 | . . . . . . . . . . . . . . . . . . . . . . . . 3 . Fabricator Hacks 37 | . . . . . 3 8 . . . . 13 . 6 . . . . 4 . . . . 3 . . Network Status 4 | . . . . . 1 1 . . . . 1 . . . . . . . . . . . 1 . . Load Schematic 17 | . . . . . 1 4 . . . . 6 . 3 . . . . 2 . . . . 1 . . Build 16 | . . . . . 1 3 . . . . 6 . 3 . . . . 2 . . . . 1 . . Repair Station Hacks 20 | . . . . . . . . . . . 7 . 9 . . . . 2 . . . . . 2 . Scan Component 11 | . . . . . . . . . . . 4 . 5 . . . . 1 . . . . . 1 . Repair 9 | . . . . . . . . . . . 3 . 4 . . . . 1 . . . . . 1 . Recycling Unit Hacks 16 | . 1 . . . 1 1 . . . . 6 . 4 . . . . 2 . . . . 1 . . Report Inventory 12 | . 1 . . . 1 1 . . . . 2 . 4 . . . . 2 . . . . 1 . . Retrieve Components 4 | . . . . . . . . . . . 4 . . . . . . . . . . . . . . Scanalyzer 24 | . . . . . 2 . . . . . 8 . 3 . . . . 3 . . . . 1 7 . Insert Component 19 | . . . . . 1 . . . . . 7 . 3 . . . . 2 . . . . 1 5 . Analyze 5 | . . . . . 1 . . . . . 1 . . . . . . 1 . . . . . 2 . Garrison Access Hacks 14 | . . . . . 1 3 . . . . 3 . 3 . . . . 2 . . . . . 1 1 Seal Access 14 | . . . . . 1 3 . . . . 3 . 3 . . . . 2 . . . . . 1 1 Unauthorized Hacks 79 | . 1 1 . 1 6 10 . . . . 23 . 14 . . . . 13 . . . . 4 5 1 Terminals 49 | . 1 1 . 1 5 9 . . . . 11 . 8 . . . . 7 . . . . 1 4 1 Track 2 | . . . . . . . . . . . . . . . . . . 1 . . . . . 1 . Assimilate 20 | . . . . . 3 5 . . . . 7 . 4 . . . . . . . . . . . 1 Botnet 25 | . 1 1 . 1 2 4 . . . . 4 . 4 . . . . 5 . . . . 1 2 . Detonate 2 | . . . . . . . . . . . . . . . . . . 1 . . . . . 1 . Fabricators 19 | . . . . . 1 1 . . . . 7 . 2 . . . . 4 . . . . 3 1 . Report 3 | . . . . . . . . . . . 1 . . . . . . 1 . . . . 1 . . Prioritize 12 | . . . . . 1 1 . . . . 5 . 2 . . . . 2 . . . . 1 . . Haulers 3 | . . . . . . . . . . . 1 . . . . . . 1 . . . . 1 . . Overload 1 | . . . . . . . . . . . . . . . . . . . . . . . . 1 . Repair Stations . | . . . . . . . . . . . . . . . . . . . . . . . . . . Recycling Units 10 | . . . . . . . . . . . 4 . 4 . . . . 2 . . . . . . . Monitor 5 | . . . . . . . . . . . 2 . 2 . . . . 1 . . . . . . . Reject 5 | . . . . . . . . . . . 2 . 2 . . . . 1 . . . . . . . Scanalyzers 1 | . . . . . . . . . . . 1 . . . . . . . . . . . . . . Researchers 1 | . . . . . . . . . . . 1 . . . . . . . . . . . . . . Garrison Access . | . . . . . . . . . . . . . . . . . . . . . . . . . . Data Cores Recovered 1 | . . . . . . . . . . . . . 1 . . . . . . . . . . . . Used 1 | . . . . . . . . . . . . . 1 . . . . . . . . . . . . Hacking Detections 115 | . 5 2 . 2 12 19 . . . . 22 . 20 . . . . 17 . . . . 6 8 2 Full Trace Events 30 | . . 1 . . 1 3 . . . . 11 . 6 . . . . 4 . . . . 1 2 1 Feedback Events 3 | . . . . . . . . . . . 1 . . . . . . . . . . . . 1 1 Corruption 2 | . . . . . . . . . . . 1 . . . . . . . . . . . . 1 . Hackware Fried 1 | . . . . . . . . . . . . . . . . . . . . . . . . . 1 Feedback Blocked . | . . . . . . . . . . . . . . . . . . . . . . . . . . Robot Schematics Acquired 4 | . . . . . . . . . 4 . . . . . . . . . . . . . . . . Robots Built . | . . . . . . . . . . . . . . . . . . . . . . . . . . Authchips . | . . . . . . . . . . . . . . . . . . . . . . . . . . Time . | . . . . . . . . . . . . . . . . . . . . . . . . . . Total Robot Build Rating . | . . . . . . . . . . . . . . . . . . . . . . . . . . Part Schematics Acquired 43 | . . . . . 2 4 . . 13 . 5 . 3 . . 4 . 6 . . . . 1 5 . Parts Built 18 | . . . . . 2 3 . . . . 7 . 3 . . . . 2 . . . . 1 . . Authchips . | . . . . . . . . . . . . . . . . . . . . . . . . . . Time 794 | . . . . . 53 179 . . . . 218 . 164 . . . . 122 . . . . 58 . . Total Part Build Rating 118 | . . . . . 12 16 . . . . 50 . 19 . . . . 14 . . . . 7 . . Parts Repaired 9 | . . . . . . . . . . . 3 . 4 . . . . 1 . . . . . 1 . Time 430 | . . . . . . . . . . . 90 . 255 . . . . 34 . . . . . 51 . Parts Recycled . | . . . . . . . . . . . . . . . . . . . . . . . . . . Recycled Matter . | . . . . . . . . . . . . . . . . . . . . . . . . . . Retrieved Matter . | . . . . . . . . . . . . . . . . . . . . . . . . . . Retrieved Components 8 | . . . . . . . . . . . 8 . . . . . . . . . . . . . . Parts Scanalyzed 5 | . . . . . 1 . . . . . 1 . . . . . . 1 . . . . . 2 . Part Schematics Acquired 5 | . . . . . 1 . . . . . 1 . . . . . . 1 . . . . . 2 . Parts Damaged 3 | . . . . . . . . . . . 1 . . . . . . 1 . . . . . 1 . Bothacking | -11 -10 -9 -9 -8 -7 -6 -6 -6 -6 -5 -5 -5 -5 -5 -5 -5 -4 -4 -4 -4 -4 -3 -3 -3 -2 ------------ Run | Yrd Mat Mat Min Mat Fac Fac Low Low Zio Pro Fac Was Fac Upp Upp Zhi Pro Fac Upp Upp War Pro Res Tes Res Used RIF Installer . | . . . . . . . . . . . . . . . . . . . . . . . . . . Robots Hacked 1 | . . . . . . . . . . . . 1 . . . . . . . . . . . . . Non-combat . | . . . . . . . . . . . . . . . . . . . . . . . . . . Combat 1 | . . . . . . . . . . . . 1 . . . . . . . . . . . . . Robot Hacks Applied 1 | . . . . . . . . . . . . 1 . . . . . . . . . . . . . parse_system 1 | . . . . . . . . . . . . 1 . . . . . . . . . . . . . Relay Couplers Released 3 | . . . . . . . . . . . . . . . . . . . . . . . . . 3 Machine Destruction 3 | . . . . . . . . . . . . . . . . . . . . . . . . . 3 Fabnet Peak Effective % . | . . . . . . . . . . . . . . . . . . . . . . . . . . Robots Rewired . | . . . . . . . . . . . . . . . . . . . . . . . . . . Allies Hacked . | . . . . . . . . . . . . . . . . . . . . . . . . . . Hacks Repelled . | . . . . . . . . . . . . . . . . . . . . . . . . . . Allies | -11 -10 -9 -9 -8 -7 -6 -6 -6 -6 -5 -5 -5 -5 -5 -5 -5 -4 -4 -4 -4 -4 -3 -3 -3 -2 -------- Run | Yrd Mat Mat Min Mat Fac Fac Low Low Zio Pro Fac Was Fac Upp Upp Zhi Pro Fac Upp Upp War Pro Res Tes Res Total Allies 37 | . . . 3 . 4 5 . . . . 3 20 1 . . . . . . . . . . . 1 Largest Group 19 | . . . 3 1 3 3 . . . . 1 19 1 . . . . . . . . . . . 1 Highest-Rated Group 702 | . . . 78 31 93 62 . . . . 26 702 26 . . . . . . . . . . . 26 Highest-Rated Ally 50 | . . . 31 31 31 26 . . . . 26 50 26 . . . . . . . . . . . 26 Total Orders . | . . . . . . . . . . . . . . . . . . . . . . . . . . Ally Attacks 182 | . . . 35 5 . . . . . . . 142 . . . . . . . . . . . . . Total Damage 6642 | . . . 562 21 . . . . . . . 6059 . . . . . . . . . . . . . Kills 22 | . . . 10 . . . . . . . . 12 . . . . . . . . . . . . . Allies Corrupted . | . . . . . . . . . . . . . . . . . . . . . . . . . . Allies Melted . | . . . . . . . . . . . . . . . . . . . . . . . . . . Intel | -11 -10 -9 -9 -8 -7 -6 -6 -6 -6 -5 -5 -5 -5 -5 -5 -5 -4 -4 -4 -4 -4 -3 -3 -3 -2 ------- Run | Yrd Mat Mat Min Mat Fac Fac Low Low Zio Pro Fac Was Fac Upp Upp Zhi Pro Fac Upp Upp War Pro Res Tes Res Robot Analysis Total 15 | . 1 1 . . . . . . . . 1 . 5 . . 4 . 2 . . . . . 1 . Derelict Logs Recovered 14 | . . . 2 . . . 2 1 1 1 . . . 2 3 . 1 . . 1 . . . . . Drone Launches . | . . . . . . . . . . . . . . . . . . . . . . . . . . Drone Recoveries . | . . . . . . . . . . . . . . . . . . . . . . . . . . Exploration | -11 -10 -9 -9 -8 -7 -6 -6 -6 -6 -5 -5 -5 -5 -5 -5 -5 -4 -4 -4 -4 -4 -3 -3 -3 -2 ------------- Run | Yrd Mat Mat Min Mat Fac Fac Low Low Zio Pro Fac Was Fac Upp Upp Zhi Pro Fac Upp Upp War Pro Res Tes Res Turns Passed 15872 | 54 735 573 1225 674 793 1312 268 270 369 227 2206 210 2348 145 145 103 149 1429 230 209 596 85 601 383 533 Spaces Moved 29650 | 40 390 237 592 248 2166 3096 741 444 1068 438 4687 469 4777 415 363 232 366 2599 627 544 1266 297 1335 946 1267 Core 29 | 1 . . . 3 . . . . . . . . . . . . . . . . . . . . 25 Treads 1269 | . 195 237 592 245 . . . . . . . . . . . . . . . . . . . . . Legs 68 | . . . . . . . . . . . . . . . . . . . . . . . . . 68 Wheels 234 | 39 195 . . . . . . . . . . . . . . . . . . . . . . . . Hover . | . . . . . . . . . . . . . . . . . . . . . . . . . . Flight 28050 | . . . . . 2166 3096 741 444 1068 438 4687 469 4777 415 363 232 366 2599 627 544 1266 297 1335 946 1174 Fastest Speed 11 | 50 100 160 160 152 24 24 33 28 28 36 32 35 31 35 35 35 35 32 35 35 28 28 25 15 11 Average Speed 38 | 98 130 160 160 181 24 26 33 31 32 36 35 35 36 35 35 35 35 37 35 35 30 28 25 29 27 Slowest Speed 450 | 100 160 160 160 450 27 34 37 37 36 36 112 111 122 35 35 122 35 122 35 35 35 28 99 103 117 Overloaded Moves 41 | . . . . . . . . . . . . . 41 . . . . . . . . . . . . Propulsion Burnouts . | . . . . . . . . . . . . . . . . . . . . . . . . . . Robots Hopped 129 | . . . . . 5 29 3 2 . . 15 5 13 . . . . 14 . . 1 . 19 17 6 Cave-ins Triggered 1 | . . . . . . 1 . . . . . . . . . . . . . . . . . . . Teleports 1 | . . . . . . . . . . . . . . . . . . . . . . . . 1 . Exploration Rate (%) 64 | 3 69 28 100 30 60 73 79 54 88 65 70 96 76 67 58 62 60 61 79 78 94 62 40 89 37 Regions Visited 25 Branch Regions 14 Pre-discovered Areas 10 | . . . 2 . . . 1 1 2 . . . . . 1 3 . . . . . . . . . Known Exits Taken 19 | . . . . 1 1 1 1 1 1 1 . . 1 1 1 1 1 1 1 1 1 1 1 1 . Unknown Exits Taken 4 | 1 1 1 1 . . . . . . . . . . . . . . . . . . . . . . Scrap Searched 34 | . . . 2 . . . 8 7 1 3 . . . 3 2 . 1 . 3 3 . 1 . . . Spaces Dug 475 | . . . . 3 39 73 . . . . 82 . 82 . . . 5 118 4 6 4 . 33 16 10 Terrain Destroyed 932 | . . 52 . 27 39 128 16 . . 21 109 2 91 . . . 5 188 4 6 126 . 35 73 10 Melee 371 | . . . . 3 39 58 . . . . 82 . 80 . . . 5 34 4 6 4 . 32 16 8 Projectile 84 | . . . . . . 17 . . . . 2 2 11 . . . . 47 . . . . 3 . 2 AOE 477 | . . 52 . 24 . 53 16 . . 21 25 . . . . . . 107 . . 122 . . 57 . Terrain Rammed . | . . . . . . . . . . . . . . . . . . . . . . . . . . Walls Destroyed . | . . . . . . . . . . . . . . . . . . . . . . . . . . Machines Disabled . | . . . . . . . . . . . . . . . . . . . . . . . . . . Actions | -11 -10 -9 -9 -8 -7 -6 -6 -6 -6 -5 -5 -5 -5 -5 -5 -5 -4 -4 -4 -4 -4 -3 -3 -3 -2 --------- Run | Yrd Mat Mat Min Mat Fac Fac Low Low Zio Pro Fac Was Fac Upp Upp Zhi Pro Fac Upp Upp War Pro Res Tes Res Total 32726 | 51 580 371 857 359 2342 3422 752 568 1091 503 5083 498 5165 414 379 249 373 2864 632 552 1445 297 1478 1000 1401 Wait 1611 | . 153 52 257 27 81 179 7 117 11 53 167 14 185 . 16 . . 76 . 1 124 . 52 10 29 Move 29386 | 39 389 237 591 247 2156 3042 735 439 1067 437 4657 460 4751 414 362 231 365 2570 626 543 1263 296 1298 913 1258 Hop 112 | . . . . . 4 24 2 2 . . 15 3 12 . . . . 14 . . 1 . 17 15 3 Pick Up 134 | 6 7 10 1 5 13 10 2 1 2 . 24 3 14 . . 1 . 6 1 1 3 . 8 7 9 Fast Attach 118 | 6 2 6 . 6 3 4 2 2 4 4 17 1 4 . . 7 . 14 . . 12 . 8 3 13 Attach 92 | . 2 2 1 2 9 19 2 . . . 12 2 3 . . . . 11 . 1 1 . 7 5 13 Detach 56 | . . 2 . . 4 12 1 . . . 15 . 1 . . . . 8 . . 1 . 2 3 7 Swap 108 | . 1 5 1 5 3 4 . 3 1 3 9 2 26 . 1 2 . 19 . . 2 1 6 8 6 Drop 180 | . 6 14 . 1 12 15 . 2 5 4 23 3 17 . . 7 . 9 1 . 19 . 8 9 25 Fire 289 | . 20 33 6 29 . 22 1 . . 2 30 10 22 . . . . 87 . . 7 . 17 . 3 Melee 606 | . . . . 37 57 73 . 2 1 . 114 . 130 . . 1 8 50 4 6 12 . 55 22 34 Ram 1 | . . . . . . . . . . . . . . . . . . . . . . . . . 1 Kick . | . . . . . . . . . . . . . . . . . . . . . . . . . . Crush 10 | . . 10 . . . . . . . . . . . . . . . . . . . . . . . Escape Stasis 23 | . . . . . . 18 . . . . . . . . . . . . . . . . . 5 . Rewire . | . . . . . . . . . . . . . . . . . . . . . . . . . . Trap . | . . . . . . . . . . . . . . . . . . . . . . . . . . Miscellaneous . | . . . . . . . . . . . . . . . . . . . . . . . . . . Route ------- -11/Scrapyard -10/Materials (discovered 2 exits: *Mat x2) -9/Materials (discovered 2 exits: [*Min] / [*Sto]) -9/Mines (discovered 2 exits: *Mat x2) -8/Materials -7/Factory (discovered 2 exits: *Fac x2) -6/Factory (discovered 4 exits: *Fac x2 / *Low x2) -6/Lower Caves -6/Lower Caves (discovered 2 exits: *Fac / *Zio) -6/Zion -5/Proximity Caves -5/Factory (discovered 6 exits: *Fac x2 / Upp x2 / Ext x2) -5/Waste -5/Factory (discovered 6 exits: *Fac x3 / *Upp x2 / *Ext) -5/Upper Caves -5/Upper Caves (discovered 2 exits: *Fac / *Zhi) -5/Zhirov -4/Proximity Caves -4/Factory (discovered 6 exits: *Res x4 / *Upp x2) -4/Upper Caves -4/Upper Caves (discovered 2 exits: *Res / *War) -4/Warlord -3/Proximity Caves -3/Research (discovered 2 exits: *Tes x2) -3/Testing -2/Research (discovered 2 exits: *Qua x2) History --------- Turn | Location | Event 14 | -11/Scrapyard | Discovered new exit (range 15) 55 | -11/Scrapyard | Entered Materials 279 | -10/Materials | Discovered new exit (range 16) 320 | -10/Materials | Build established: Mutant 771 | -10/Materials | Discovered new exit (range 4) 790 | -10/Materials | Entered another Materials area 790 | -9/Materials | Evolved 2 slots: Propulsion x1, Utility x1 1124 | -9/Materials | Discovered new exit (range 13) 1295 | -9/Materials | Core integrity fell below 50% 1303 | -9/Materials | Discovered new exit (range 15) 1363 | -9/Materials | Entered Mines 1370 | -9/Mines | Discovered new exit (range 9) 1374 | -9/Mines | Met a Derelict bent on vengeance 1506 | -9/Mines | Learned Materials terminal intel 1507 | -9/Mines | Learned location of Recycling (-9) 1512 | -9/Mines | Met a Derelict testing a Signal Generator 1736 | -9/Mines | Learned location of Storage (-9) 1840 | -9/Mines | Discovered new exit (range 8) 2588 | -9/Mines | Entered Materials 2588 | -8/Materials | Accompanied by 1 ally 2588 | -8/Materials | Evolved 2 slots: Propulsion x1, Utility x1 2589 | -8/Materials | Loaded intel: 12 terminal locations 2593 | -8/Materials | Led the pair of lost Derelicts to an unsafe place 2907 | -8/Materials | Garrison activated, responded to threat 2964 | -8/Materials | Destroyed 8 combat bots 2964 | -8/Materials | Lost 3 parts (1p2n) 3226 | -8/Materials | Discovered new exit (range 16) 3259 | -8/Materials | Identified exit to Factory 3262 | -8/Materials | Entered Factory 3262 | -7/Factory | Evolved 2 slots: Propulsion x1, Utility x1 3425 | -7/Factory | Discovered new exit (range 16) 3432 | -7/Factory | Identified exit to Factory 3565 | -7/Factory | Build established: Scout 3819 | -7/Factory | Fabricated Hyp. Gauss Cannon? 3946 | -7/Factory | Discovered exit to Factory (range 12) 3949 | -7/Factory | Allied Derelicts emerged from ambush trap array 4055 | -7/Factory | Entered another Factory area 4055 | -6/Factory | Evolved 2 slots: Utility x2 4068 | -6/Factory | Discovered new exit (range 13) 4083 | -6/Factory | Identified exit to Factory 4186 | -6/Factory | Discovered new exit (range 5) 4187 | -6/Factory | Identified exit to Lower Caves 4203 | -6/Factory | Discovered exit to Factory (range 9) 4380 | -6/Factory | Build established: Hacker-Scout 4564 | -6/Factory | Discovered exit to Lower Caves (range 5) 4595 | -6/Factory | Fabricated Imp. Hacking Suite? 4613 | -6/Factory | Fabricated Imp. Hacking Suite? 5082 | -6/Factory | Crushed by falling debris 5082 | -6/Factory | System corruption reached 10% 5105 | -6/Factory | Search patrols dispatched 5113 | -6/Factory | Lost 6 parts (1p3n1u1w) 5331 | -6/Factory | Fabricated Adv. Hacking Suite? 5367 | -6/Factory | Entered Lower Caves 5370 | -6/Lower Caves | Learned location of Extension (-5) 5376 | -6/Lower Caves | Build established: Hacker-Mutant 5586 | -6/Lower Caves | Spotted B-75 Beast 5592 | -6/Lower Caves | Learned Factory terminal intel 5621 | -6/Lower Caves | Discovered new exit (range 8) 5623 | -6/Lower Caves | Identified exit to Lower Caves 5635 | -6/Lower Caves | Entered another Lower Caves area 5658 | -6/Lower Caves | Encountered a Warlord checkpoint 5661 | -6/Lower Caves | Discovered exit to Factory (range 11) 5901 | -6/Lower Caves | Discovered new exit (range 15) 5904 | -6/Lower Caves | Identified exit to Zion 5905 | -6/Lower Caves | Entered Zion 5915 | -6/Zion | Discovered new exit (range 15) 5918 | -6/Zion | Identified exit to Proximity Caves 5928 | -6/Zion | Found CR-A16's Pointy Stick 5935 | -6/Zion | System corruption cleaned by Quarantine Array 5950 | -6/Zion | Learned location of Quarantine (-2) 6021 | -6/Zion | Build established: Hacker-Sprinter 6038 | -6/Zion | Learned location of Armory (-3) 6046 | -6/Zion | Learned 4 Factory zone layouts 6154 | -6/Zion | Found Prototype Device 6274 | -6/Zion | Entered Proximity Caves 6337 | -5/Proximity Caves | Learned Factory garrison access intel 6365 | -5/Proximity Caves | Build established: Hacker-Mutant 6482 | -5/Proximity Caves | Discovered exit to Factory (range 10) 6501 | -5/Proximity Caves | Entered Factory 6501 | -5/Factory | Evolved 2 slots: Utility x2 6501 | -5/Factory | Identified Bomb Factory No. 2 6503 | -5/Factory | Loaded intel: 27 terminal locations 6504 | -5/Factory | Loaded intel: 4 garrison access locations 6527 | -5/Factory | Central database locked down 6574 | -5/Factory | Identified exit to Upper Caves 6574 | -5/Factory | Identified exit to Extension 6639 | -5/Factory | Fabricated Adv. Hacking Suite (x1) 6896 | -5/Factory | Fabricated Impulse Thruster Array? 6960 | -5/Factory | Repaired Fission Core 7068 | -5/Factory | Discovered new exit (range 14) 7072 | -5/Factory | Identified exit to Factory 7133 | -5/Factory | Found Prototype Processor 7133 | -5/Factory | Identified Exp. Targeting Computer 7221 | -5/Factory | Build established: Wizard-Sprinter 7482 | -5/Factory | Fabricated Impulse Thruster Array (x1) 7520 | -5/Factory | Cargo convoy interrupted 7643 | -5/Factory | Fabricated Hyp. Mass Driver? 7760 | -5/Factory | Fabricated Impulse Thruster Array (x1) 7781 | -5/Factory | Build established: Wizard-Mutant 7910 | -5/Factory | Spotted B-75 Beast 8001 | -5/Factory | Search patrols dispatched 8404 | -5/Factory | Build established: Hacker-Mutant 8503 | -5/Factory | Discovered exit to Factory (range 19) 8554 | -5/Factory | Fabricated Adv. Hacking Suite (x1) 8624 | -5/Factory | Repaired Impulse Thruster Array? 8664 | -5/Factory | Repaired Hyp. Mass Driver? 8707 | -5/Factory | Manually triggered Chute Trap 8707 | -5/Factory | Sucked down chute 8707 | -5/Factory | Entered Waste 8708 | -5/Waste | Met a frightened Derelict 8713 | -5/Waste | Spotted C-40 Crusher 8715 | -5/Waste | Spotted C-40 Crusher 8720 | -5/Waste | Spotted C-40 Crusher 8726 | -5/Waste | Spotted C-40 Crusher 8745 | -5/Waste | Spotted C-40 Crusher 8767 | -5/Waste | Spotted C-40 Crusher 8790 | -5/Waste | Warlord forces began an assault 8818 | -5/Waste | Allies destroyed C-40 Crusher 8821 | -5/Waste | Allies destroyed C-40 Crusher 8830 | -5/Waste | Allies destroyed C-40 Crusher 8830 | -5/Waste | Allies destroyed C-40 Crusher 8832 | -5/Waste | Allies destroyed C-40 Crusher 8843 | -5/Waste | Allies destroyed C-40 Crusher 8866 | -5/Waste | Discovered new exit (range 13) 8872 | -5/Waste | Lost 6 allies 8916 | -5/Waste | Identified exit to Factory 8917 | -5/Waste | Entered Factory 8935 | -5/Factory | Discovered exit to Upper Caves (range 14) 9148 | -5/Factory | Repaired Adv. Cloaking Device? 9199 | -5/Factory | Discovered exit to Upper Caves (range 10) 9323 | -5/Factory | Discovered exit to Factory (range 15) 9782 | -5/Factory | Discovered exit to Extension (range 6) 9830 | -5/Factory | Central database locked down 9872 | -5/Factory | Discovered exit to Factory (range 14) 9904 | -5/Factory | Fabricated Lrn. Sensor Array (x1) 9926 | -5/Factory | Fabricated Adv. Hacking Suite (x1) 10237 | -5/Factory | Build established: Wizard-Mutant 10279 | -5/Factory | Repaired Broken Impulse Thruster Array? 10303 | -5/Factory | Discovered exit to Factory (range 6) 10676 | -5/Factory | Fabricated Adv. Hacking Suite? 10913 | -5/Factory | Repaired Cld. Nuclear Pulse Thruster? 10996 | -5/Factory | Found Prototype Launcher 11027 | -5/Factory | Identified Rocket Array 11121 | -5/Factory | Repaired Impulse Thruster Array? 11265 | -5/Factory | Entered Upper Caves 11306 | -5/Upper Caves | Learned 4 Factory zone layouts 11371 | -5/Upper Caves | Learned 12 Factory zone layouts 11405 | -5/Upper Caves | Discovered new exit (range 5) 11406 | -5/Upper Caves | Identified exit to Upper Caves 11410 | -5/Upper Caves | Entered another Upper Caves area 11445 | -5/Upper Caves | Discovered exit to Factory (range 16) 11480 | -5/Upper Caves | Learned location of 1 exit from Factory 11482 | -5/Upper Caves | Spotted B-75 Beast 11501 | -5/Upper Caves | Learned location of Warlord (-4) 11522 | -5/Upper Caves | Discovered new exit (range 14) 11554 | -5/Upper Caves | Identified exit to Zhirov 11555 | -5/Upper Caves | Entered Zhirov 11555 | -5/Zhirov | Discovered new exit (range 3) 11562 | -5/Zhirov | Met Zhirov 11568 | -5/Zhirov | Learned location of Command (-1) 11568 | -5/Zhirov | Learned location of Testing (-3) 11576 | -5/Zhirov | Zhirov requested help retrieving the SGEMP Prototype 11585 | -5/Zhirov | Found Alien Artifact 11585 | -5/Zhirov | Identified Integrated Dissipator 11585 | -5/Zhirov | Installed Integrated Dissipator, increased core heat dissipation (+20) 11621 | -5/Zhirov | Found Alien Artifact 11657 | -5/Zhirov | Identified exit to Proximity Caves 11658 | -5/Zhirov | Entered Proximity Caves 11803 | -4/Proximity Caves | Discovered exit to Factory (range 12) 11807 | -4/Proximity Caves | Entered Factory 11807 | -4/Factory | Evolved 2 slots: Power x1, Propulsion x1 11808 | -4/Factory | Identified exit to Upper Caves 11809 | -4/Factory | Identified exit to Research 11913 | -4/Factory | Identified Transdimensional Reconstructor 12172 | -4/Factory | Discovered exit to Research (range 16) 12300 | -4/Factory | Spotted B-86 Titan 12643 | -4/Factory | Fabricated Lrn. Sensor Array? 12888 | -4/Factory | Fabricated Exp. Signal Interpreter (x1) 12993 | -4/Factory | Repaired Impulse Thruster Array 13236 | -4/Factory | Entered Upper Caves 13268 | -4/Upper Caves | Encountered a Warlord checkpoint 13415 | -4/Upper Caves | Discovered new exit (range 11) 13421 | -4/Upper Caves | Identified exit to Upper Caves 13466 | -4/Upper Caves | Entered another Upper Caves area 13480 | -4/Upper Caves | Discovered exit to Research (range 14) 13645 | -4/Upper Caves | Learned Research garrison access intel 13661 | -4/Upper Caves | Discovered new exit (range 7) 13664 | -4/Upper Caves | Identified exit to Warlord 13675 | -4/Upper Caves | Entered Warlord 13687 | -4/Warlord | System corruption cleaned by Quarantine Array 13838 | -4/Warlord | Met Warlord 13863 | -4/Warlord | Warlord's base attacked by MAIN.C 13885 | -4/Warlord | Found Prototype Device 13885 | -4/Warlord | Identified System Purifier 13922 | -4/Warlord | Found Prototype Reactor 13922 | -4/Warlord | Identified Vortex Chain Reactor 13928 | -4/Warlord | Found Prototype Processor 13928 | -4/Warlord | Identified Exp. Armor Integrity Analyzer 14086 | -4/Warlord | Opened side exit 14161 | -4/Warlord | Build established: Wizard-Sprinter 14213 | -4/Warlord | Warlord forces counterattacked 14251 | -4/Warlord | Destroyed 11 combat bots 14267 | -4/Warlord | Discovered new exit (range 15) 14270 | -4/Warlord | Identified exit to Proximity Caves 14271 | -4/Warlord | Entered Proximity Caves 14353 | -3/Proximity Caves | Discovered exit to Research (range 5) 14356 | -3/Proximity Caves | Entered Research 14356 | -3/Research | Evolved 2 slots: Propulsion x1, Utility x1 14357 | -3/Research | Identified exit to Testing 14358 | -3/Research | Loaded intel: 4 garrison access locations 14721 | -3/Research | Fabricated Lrn. Sensor Array (x1) 14890 | -3/Research | Build established: Hacker-Sprinter 14953 | -3/Research | Discovered exit to Testing (range 13) 14957 | -3/Research | Entered Testing 14987 | -3/Testing | Protovariant out of control (PD-HF6Z0V64J3) 14987 | -3/Testing | Unleashed a protovariant (PD-HF6Z0V64J3) 15003 | -3/Testing | Found Prototype Processor 15026 | -3/Testing | Found Adv. Powered Armor 15065 | -3/Testing | Spotted Striker 15065 | -3/Testing | Spotted Alpha 7 15071 | -3/Testing | Repaired Broken Adv. Cloaking Device? 15124 | -3/Testing | Spotted Striker 15150 | -3/Testing | Stole the SGEMP Prototype 15156 | -3/Testing | Found Prototype Launcher 15207 | -3/Testing | Search patrols dispatched 15227 | -3/Testing | Warped through subspace 15275 | -3/Testing | Identified Exp. Target Analyzer 15295 | -3/Testing | Identified Containment Facilitator 15305 | -3/Testing | Lost 3 parts (1n2u) 15313 | -3/Testing | System corruption reached 10% 15323 | -3/Testing | Spotted Alpha 7 15333 | -3/Testing | Discovered new exit (range 9) 15333 | -3/Testing | Identified exit to Research 15340 | -3/Testing | Entered Research 15340 | -2/Research | Warlord forces began assault on 0b10 15340 | -2/Research | Evolved 2 slots: Propulsion x1, Utility x1 15344 | -2/Research | Identified exit to Quarantine 15361 | -2/Research | Adv. System Shield fried by hacking feedback 15364 | -2/Research | Found Prototype Device 15364 | -2/Research | Identified Exp. Actuator Array 15450 | -2/Research | Research machine network offline 15471 | -2/Research | Found Prototype Launcher 15523 | -2/Research | Met up with Warlord 15629 | -2/Research | Spotted B-90 Cyclops 15637 | -2/Research | Identified Gui. Micro-nuke Launcher 15696 | -2/Research | Spotted Striker 15699 | -2/Research | Spotted Executioner 15708 | -2/Research | Spotted Executioner 15746 | -2/Research | Destroyed Striker 15749 | -2/Research | Lost 5 parts (1p1n1u2w) 15768 | -2/Research | Spotted B-90 Cyclops 15783 | -2/Research | Spotted Striker 15800 | -2/Research | Core integrity fell below 50% 15836 | -2/Research | Lost 9 parts (2p4n2u1w) 15845 | -2/Research | Borebot progress halted 15865 | -2/Research | Core integrity fell below 20% 15873 | -2/Research | Destroyed by G-73 Enforcer with Phase Gun Last Messages --------------- along central northern route. GL-UEK(T) no longer operational. 15859_ Slug penetrates Wall. 15859_ Imp. Q-thruster destroyed. 15859_ Slug penetrates H-88 Terminator. 15860_ Penetrated by Slug. 15862_ Slug penetrates Wall. 15862_ Penetrated by Slug. 15864_ Slug penetrates Wall. 15864_ Penetrated by Slug. 15864_ C-30 ARC bursts open, deploying its payload. 15864_ L-61 Swordsman unfolds itself. 15864_ G-73 Enforcer unfolds itself. 15865_ Slammed into L-61 Swordsman. 15865_ Exp. Armor Integrity Analyzer destroyed. 15865_ Exp. Target Analyzer destroyed. 15867_ Slug penetrates Wall. 15870_ Hacking Suite destroyed. 15870_ Slug penetrates Wall. Map ----- +----------------------------------------------------+ | ???# """ #??????????????? | | ???# """ #??????????????? | | ???# """ #??????????????? | | ???# """ #??????????????? | | ???###### """ #??????????????? | | ????????### """ #??????????????? | | ??????????#"#"######## " #??????????????? | | ?????????????????????# #??????????????? | | ?????????????????????# #??????????????? | | ?????????????????????# #??????????????? | | ?????????????????????# #######?????????????? | | ????????????????>????## #?????????????? | | ?????????????????????# ###########+### | | ?????????????????????# """ """ # | | ?????????????????????# """ """ + | | ?????????????????????## """ """ # | | ??????????????????????# # | | ??????????????????????# # ########## | | ??????????????????????# """ """ # #????????? | | ??????????????????????# """ """ # ########?? | | ??????????????????????# """ """ # #?? | | ??????????????????????# # ### | | ??????????????????????# !g ! # | | ??????????????????????###g########## | | ????????????????????????# #????????# #### | | ????????????????????????#@#????????# #??? | | ????????????????????????# #????????# #???? | | ????????????????????????# #????????# #????? ? | | ????????????????????????# #????????# #????????? | | ????????????????????????# #????????# #????????? | | ????????????????????????# #????????# #????????? | | ??????????????????#######;###??????# #????????? | | ??????????????????# #??????# #????????? | | ??????????????????# ######## #????????? | | ??????????????????#"""" l # +????????? | | ??????????????????#"""" # #????????? | | #?????????????????#"""" # #????????? | | #?????????????????#"""" # #????????? | | #?????????????????# g g # ####+###????????? | | #?????????????????# % # #???????????????? | | #########################g### #???????????????? | | # " #???????????????? | | / #???????????????? | | # #???????????????? | | # #???????????????? | | #+##+########## ######+########???????????????? | | # #???# #?????????????????????????????? | | # !#???# #?????????????????????????????? | | # """" ##### #?????????????????????????????? | | # """" + #?????????????????????????????? | +----------------------------------------------------+ Best States ------------- Heat Dissipation 71 Energy Generation 45 Energy Capacity 440 Matter Stores 300 Matter Capacity 600 Sight Range 16 Robot Scan Range 18 Terrain Scan Density 10 Jamming Range 16 Cloak Strength 4 Corruption Containment 24 Armor Coverage 450 Resistance: KI 25 Power Shielding 66 Evasion (%) 76 Target Analysis 10 Armor Integrity Analysis 50 Recoil Reduction 3 Offensive Hacking 58 Defensive Hacking 22 Item Schematics ----------------- Hyp. Gauss Cannon | -7/Factory | Hacked Lrg. Storage Unit | -7/Factory | Scanalyzed Imp. Hacking Suite | -6/Factory | Hacked Adv. Signal Interpreter | -6/Factory | Hacked Adv. Sensor Array | -6/Factory | Hacked Adv. Hacking Suite | -6/Factory | Hacked Adv. System Shield | -6/Zion | Archive 0b10 Decoder Chip [Generic] | -6/Zion | Archive Power Amplifier | -6/Zion | Archive KE Penetrator | -6/Zion | Archive Hyp. Mass Driver | -6/Zion | Archive Energy Well | -6/Zion | Archive Imp. Corruption Screen | -6/Zion | Archive Imp. Plasma Cutter | -6/Zion | Archive Focal Shield | -6/Zion | Archive Imp. Focal Shield | -6/Zion | Archive Flexi-carbon Leg | -6/Zion | Archive Tesla Rifle | -6/Zion | Archive Adv. Target Analyzer | -6/Zion | Archive Impulse Thruster Array | -5/Factory | Hacked Adv. Reaction Control System | -5/Factory | Hacked Lgt. Particle Reactor | -5/Factory | Hacked Prc. Energy Filter | -5/Factory | Scanalyzed Lrn. Sensor Array | -5/Factory | Hacked Cmb. Antigrav System | -5/Factory | Hacked Particle Reactor | -5/Factory | Hacked Quantum Capacitor | -5/Factory | Hacked Assault Drone Bay | -5/Zhirov | Free Exp. Heat Sink | -5/Zhirov | Free Exp. Optical Array | -5/Zhirov | Free Imp. Arc Thrower | -5/Zhirov | Free Adv. Cloaking Device | -4/Factory | Scanalyzed Exp. Signal Interpreter | -4/Factory | Hacked Field Propulsion Array | -4/Factory | Hacked Enh. Nova Cannon | -4/Factory | Hacked Mic. Antimatter Reactor | -4/Factory | Hacked Hyp. Railgun | -4/Factory | Hacked Adv. Force Booster | -3/Research | Hacked Med. Regenerative Plating | -3/Testing | Hacked Lgt. Regenerative Plating | -3/Testing | Hacked Com. Particle Reactor | -3/Testing | Scanalyzed Fusion Bomb Launcher | -3/Testing | Hacked Hvy. Proton Missile Launcher | -3/Testing | Scanalyzed Robot Schematics ------------------ Y-72 Warden | -6/Zion | Archive K-01 Serf | -6/Zion | Archive B-48 Gladiator | -6/Zion | Archive R-10 Processor | -6/Zion | Archive Fabricated ------------ Hyp. Gauss Cannon | x2 | -7/Factory Imp. Hacking Suite | x1 | -6/Factory Imp. Hacking Suite | x1 | -6/Factory Adv. Hacking Suite | x1 | -6/Factory Adv. Hacking Suite | x1 | -5/Factory Impulse Thruster Array | x1 | -5/Factory Impulse Thruster Array | x1 | -5/Factory Hyp. Mass Driver | x2 | -5/Factory Impulse Thruster Array | x1 | -5/Factory Adv. Hacking Suite | x1 | -5/Factory Lrn. Sensor Array | x1 | -5/Factory Adv. Hacking Suite | x1 | -5/Factory Adv. Hacking Suite | x1 | -5/Factory Lrn. Sensor Array | x1 | -4/Factory Exp. Signal Interpreter | x1 | -4/Factory Lrn. Sensor Array | x1 | -3/Research Alien Tech Used ----------------- Integrated Dissipator Transdimensional Reconstructor Achievements -------------- None Challenges ------------ None Game ------ Seed ArchitectShieldPod Manual? 0 Play Time 06:51:53 Cumulative 171.5 hours Start 2024.04.14 @ 17:34:06 End 2024.04.19 @ 01:39:28 Sessions 19 Manual Loads 0 Difficulty Rogue Special Mode None Game No. 39 Rogue 19 Adventurer 20 Explorer 0 Win Type - Total 12 Types 7/2/3/0/0/0/0/0/0 Lore% 73 Gallery% 76 Achievement% 66 Wizard Run 0 Options --------- Layout 1 ASCII 0 Keyboard 1 Movement Numpad Keybinds 0 Fullscreen 1 Font 32/Smallcaps Map View 50x35 Zoom Use 0% Tactical HUD 1 Map Filters NONE Filters NONE Steam 1 RUN: 3b3b8e30-ebc5-42c9-9d96-2be9fc68ccae